bitfinex-derivatives/quotes_ETHF0:USTF0_20240830
["timestamp","ask_amount","ask_price","bid_price","bid_amount"]
[1725021137656,0.00592253,2528.6,2528.0,3.21372253]
[1725021137847,0.00592253,2528.6,2528.1,0.39548]
[1725021138041,0.00592253,2528.6,2528.5,0.39543]
[1725021138345,3.21372253,2528.6,2528.0,0.00592253]
[1725021138540,0.39549,2528.1,2528.0,0.00592253]
[1725021139043,0.39549,2528.1,2527.3,0.49422794]
[1725021139044,0.39554,2527.8,2527.3,0.49422794]
[1725021139244,3.2078,2527.5,2527.3,0.49422794]
[1725021139850,4.17501091,2527.4,2527.3,0.49422794]
[1725021140055,0.00592253,2528.6,2527.3,0.49422794]
[1725021140056,3.2078,2527.7,2527.3,0.49422794]
[1725021140249,0.9886,2528.5,2527.1,0.0059346]
[1725021140250,0.98861,2528.5,2527.1,0.0059346]
[1725021140451,3.2078,2527.4,2527.1,0.0059346]
[1725021140854,0.39567,2527.0,2526.3,0.39576]
[1725021141052,3.2078,2527.2,2526.1,4.19731]
[1725021141452,3.2078,2527.5,2526.9,0.39567]
[1725021141758,3.2078,2527.9,2527.1,3.2078]
[1725021141963,0.0059346,2527.8,2527.2,0.0059346]
[1725021142449,0.39561,2527.3,2527.2,0.0059346]
[1725021142749,3.60341,2527.3,2527.2,0.0059346]
[1725021142953,0.9891,2527.2,2526.1,3.2078]
[1725021143155,3.2078,2526.4,2526.1,0.3958]
[1725021143342,3.2078,2526.4,2525.7,3.2078]
[1725021143343,3.2078,2527.0,2525.8,4.19743]
[1725021143546,3.2078,2526.7,2525.8,3.2078]
[1725021143742,0.9891,2527.2,2524.8,5.93]
[1725021143743,0.39578,2526.3,2525.7,0.39586]
[1725021143950,0.39578,2526.3,2525.7,0.39962101]
[1725021143951,3.2078,2526.2,2525.7,0.39962101]
[1725021144147,3.2078,2526.2,2525.7,0.00376101]
[1725021144347,0.39585,2525.8,2525.7,0.00376101]
[1725021144550,3.60365,2525.8,2525.7,0.00376101]
[1725021144757,10.35505,2525.8,2525.7,0.00376101]
[1725021144954,10.35505,2525.8,2524.5,3.6038]
[1725021144955,14.4459363,2525.8,2524.5,3.6038]
[1725021145156,3.2078,2526.2,2524.6,0.9901]
[1725021145364,3.2078,2525.6,2524.5,0.396]
[1725021145567,3.2078,2525.3,2524.6,3.2078]
[1725021145852,3.2078,2524.9,2524.1,0.00317092]
[1725021146062,5.93,2526.1,2524.1,0.00317092]
[1725021146063,3.2078,2524.4,2524.1,0.00317092]
[1725021146444,0.0059346,2524.8,2524.1,0.00317092]
[1725021146445,3.2078,2524.7,2524.1,0.00317092]
[1725021146646,0.39612,2524.1,2523.2,3.60405]
[1725021146850,3.2078,2524.0,2522.9,3.2078]
[1725021147056,4.28431881,2524.0,2522.9,3.2078]
[1725021147351,0.0059346,2524.8,2522.5,0.3968]
[1725021147352,0.29519062,2524.7,2523.6,0.39618]
[1725021147559,3.2078,2524.4,2523.2,0.39625]
[1725021147748,3.2078,2523.8,2522.9,3.2078]
[1725021147954,3.2078,2524.5,2523.7,3.2078]
[1725021148158,3.2078,2524.5,2524.1,0.39611]
[1725021148359,3.2078,2524.5,2523.0,0.99073]
[1725021148360,4.22808403,2524.4,2523.3,3.2078]
[1725021148564,7.43588403,2524.4,2523.3,3.2078]
[1725021148865,0.98954,2526.1,2523.0,1.18728625]
[1725021148866,3.2078,2526.3,2524.5,0.99011]
[1725021149165,3.60351,2526.7,2525.8,0.39585]
[1725021149462,4.30715888,2526.2,2525.5,3.2078]
[1725021149649,3.2078,2526.1,2525.0,3.2078]
[1725021149854,0.0059346,2525.8,2525.3,0.0059346]
[1725021150254,0.0059346,2525.8,2525.4,0.39591]
[1725021150462,0.0059346,2525.8,2525.3,0.0059346]
[1725021150655,8.46829092,2525.7,2525.3,0.0059346]
[1725021150858,3.96,2525.6,2525.3,0.0059346]
[1725021151164,3.96,2525.6,2524.7,3.2078]
[1725021151165,0.39594,2525.3,2524.7,3.2078]
[1725021151349,7.71689092,2525.5,2524.7,3.2078]
[1725021151549,0.98971,2525.6,2524.7,3.2078]
[1725021151550,7.89638908,2525.2,2524.7,3.2078]
[1725021151748,4.29263908,2525.2,2524.7,3.60382]
[1725021151962,4.29263908,2525.4,2524.7,3.2078]
[1725021152158,0.0059346,2525.8,2524.4,0.99018]
[1725021152159,0.0059346,2525.8,2524.8,3.2078]
[1725021152559,4.4248198,2525.7,2524.8,3.2078]
[1725021152759,4.4248198,2525.7,2525.2,0.39594]
[1725021152959,4.4248198,2525.7,2524.8,4.19782]
[1725021153162,0.0059346,2525.8,2525.6,0.39588]
[1725021153366,0.0059346,2525.8,2525.7,0.39587]
[1725021153765,4.6e-06,2525.8,2525.7,11.34474]
[1725021153967,4.6e-06,2525.8,2525.7,10.35507]
[1725021154162,4.6e-06,2525.8,2525.7,7.56287]
[1725021154360,4.6e-06,2525.8,2525.7,3.60367]
[1725021154559,4.6e-06,2525.8,2525.7,0.39587]
[1725021155571,4.6e-06,2525.8,2525.7,15.54221]
[1725021155761,3.2078,2527.7,2525.7,10.19747]
[1725021155959,3.2078,2527.4,2526.5,3.2078]
[1725021156165,0.39565,2527.1,2526.5,3.2078]
[1725021156359,0.01004632,2527.3,2526.8,0.39569]
[1725021156563,0.39565,2527.1,2526.5,3.2078]
[1725021156767,3.2137346,2527.1,2526.5,0.0059346]
[1725021156971,4.7915824,2527.0,2526.5,0.4016646]
[1725021157165,3.2137346,2527.1,2526.7,0.3957]
[1725021157370,3.2137346,2527.1,2526.5,0.0059346]
[1725021157571,4.6e-06,2527.1,2527.0,0.39566]
[1725021157865,4.6e-06,2527.1,2527.0,9.60346]
[1725021158062,4.6e-06,2527.1,2527.0,7.56026]
[1725021158261,4.6e-06,2527.1,2527.0,4.35246]
[1725021158567,4.6e-06,2527.1,2526.9,3.2078]
[1725021158771,4.3532546,2527.1,2526.6,0.39572]
[1725021159072,4.3532546,2527.1,2526.5,3.2137346]
[1725021159073,7.7820655,2527.0,2526.5,3.2137346]
[1725021159370,0.39567,2527.0,2526.5,3.6094646]
[1725021159566,4.6e-06,2527.1,2526.5,3.6094646]
[1725021159567,0.39569,2526.9,2526.5,3.2137346]
[1725021159759,0.39572,2526.6,2526.5,0.0059346]
[1725021159962,4.59284,2526.6,2525.7,0.39586]
[1725021160162,4.59284,2526.6,2525.5,3.2078]
[1725021160163,4.18432154,2526.6,2526.2,0.39578]
[1725021160365,4.18432154,2526.6,2526.0,3.2078]
[1725021160677,4.6e-06,2527.1,2526.0,0.98955]
[1725021160864,4.6e-06,2527.1,2526.5,0.39573]
[1725021160865,3.2078,2527.0,2526.5,0.39573]
[1725021161066,4.78580696,2526.9,2526.5,0.40166]
[1725021161269,4.6e-06,2527.1,2526.5,0.00593]
[1725021161570,3.2078,2527.0,2526.5,0.00593]
[1725021161774,0.3957,2526.8,2526.5,0.00593]
[1725021161960,7.34948223,2527.0,2526.5,0.00593]
[1725021161961,0.39572,2526.6,2526.5,0.00593]
[1725021162160,4.14168223,2526.7,2526.5,0.40166]
[1725021162362,3.2078,2527.0,2526.5,0.00593]
[1725021162561,4.6e-06,2527.1,2527.0,0.39566]
[1725021162765,4.6e-06,2527.1,2526.5,0.00593]
[1725021162976,0.3956646,2527.1,2526.5,0.00593]
[1725021163160,4.6e-06,2527.1,2526.5,0.00593]
[1725021163367,4.87303277,2527.0,2526.6,0.39572]
[1725021163569,1.38504,2526.6,2526.5,0.00593]
[1725021163771,5.34264,2526.6,2526.5,0.00593]
[1725021163964,15.60948324,2526.6,2526.5,0.00593]
[1725021164275,55.02444324,2526.6,2526.0,0.3958]
[1725021164575,45.46257324,2526.6,2526.2,0.39578]
[1725021164767,0.39574,2526.5,2525.7,3.2078]
[1725021165065,4.56345089,2526.4,2525.7,3.2078]
[1725021165268,4.56345089,2526.4,2525.5,0.39589]
[1725021165269,0.39584,2525.9,2525.5,0.39589]
[1725021165480,3.2078,2526.1,2525.1,3.2078]
[1725021165663,3.2078,2525.5,2524.4,3.2078]
[1725021165864,3.2078,2525.5,2524.3,0.9902]
[1725021165865,4.90989284,2525.8,2525.2,0.39593]
[1725021166064,3.2137346,2525.9,2524.4,3.2078]
[1725021166268,3.2137346,2525.9,2525.4,0.39591]
[1725021166269,4.51404284,2525.7,2525.4,0.39591]
[1725021166464,4.51404284,2525.7,2524.8,3.2078]
[1725021166665,3.2137346,2525.9,2525.1,0.39596]
[1725021166866,3.2137346,2525.9,2524.8,3.2078]
[1725021167072,4.11956748,2525.8,2525.4,0.3959]
[1725021167273,4.11956748,2525.8,2524.9,3.2078]
[1725021167472,0.0059346,2525.9,2525.2,3.2078]
[1725021167669,0.0059346,2525.9,2525.0,0.98995]
[1725021167872,0.0059346,2525.9,2525.8,0.39585]
[1725021168266,0.0059346,2525.9,2525.8,4.35505]
[1725021168467,0.0059346,2525.9,2525.1,3.2078]
[1725021168468,0.00232394,2525.9,2525.1,3.2078]
[1725021168873,0.00232394,2525.9,2525.5,0.39589]
[1725021169073,0.00232394,2525.9,2525.1,3.2078]
[1725021169074,4.37565291,2525.8,2525.1,3.2078]
[1725021169481,4.37565291,2525.8,2525.2,0.00361066]
[1725021169666,0.39591,2525.5,2525.2,0.00361066]
[1725021169873,3.2078,2525.7,2525.2,0.00361066]
[1725021170079,4.37565291,2525.8,2525.2,0.00361066]
[1725021170283,0.39591,2525.5,2525.2,0.00361066]
[1725021170466,0.98963,2525.8,2525.2,0.00361066]
[1725021170467,0.39588,2525.7,2525.2,0.39955066]
[1725021170671,0.39592,2525.4,2525.2,0.00361066]
[1725021170974,0.39587,2525.7,2525.3,0.39593]
[1725021171173,0.39591,2525.5,2525.2,0.00361066]
[1725021171478,0.3959,2525.5,2525.2,0.00361066]
[1725021171789,0.39591,2525.5,2525.2,0.00361066]
[1725021172074,0.00232394,2525.9,2525.2,0.00361066]
[1725021172275,0.39585,2525.8,2525.4,0.3959]
[1725021172467,3.2078,2525.8,2525.2,0.00361066]
[1725021172668,0.39591,2525.4,2525.2,0.00361066]
[1725021172865,7.62178571,2525.8,2525.2,0.00361066]
[1725021173073,0.39593,2525.3,2525.2,0.00361066]
[1725021173271,4.41398571,2525.3,2525.2,0.00361066]
[1725021173478,3.2078,2525.8,2525.2,0.00361066]
[1725021173670,0.39591,2525.5,2525.2,0.00361066]
[1725021173866,0.39591,2525.5,2525.2,0.39955066]
[1725021174081,0.39589,2525.6,2525.3,0.39593]
[1725021174275,3.2078,2525.8,2525.2,0.39954066]
[1725021174479,4.20501353,2525.5,2525.2,0.00361066]
[1725021174684,3.2078,2525.8,2525.2,0.00361066]
[1725021174866,0.00232394,2525.9,2525.7,0.39587]
[1725021175074,0.00232394,2525.9,2525.8,0.39585]
[1725021175479,0.00232394,2525.9,2525.4,0.98979]
[1725021175675,0.00232394,2525.9,2525.8,0.39585]
[1725021176193,0.00232394,2525.9,2525.8,7.56285]
[1725021176477,3.2078,2527.0,2526.5,0.39573]
[1725021176680,3.2078,2527.0,2525.8,3.2078]
[1725021176880,4.38104483,2526.9,2526.1,4.19731]
[1725021177079,0.3957,2526.8,2526.5,0.39573]
[1725021177278,4.38104483,2526.9,2525.8,3.2078]
[1725021177476,0.4016646,2526.6,2526.3,0.39576]
[1725021177673,0.0059346,2526.6,2526.1,0.0059346]
[1725021177874,0.39578,2526.3,2526.1,0.0059346]
[1725021178280,0.39579,2526.2,2526.1,0.0059346]
[1725021178781,0.9952846,2526.6,2526.1,0.4017246]
[1725021178981,0.39575,2526.5,2526.1,0.0059346]
[1725021179280,4.48520973,2526.5,2526.1,0.0059346]
[1725021179584,0.0059346,2526.6,2526.1,0.0059346]
[1725021179884,0.0059346,2526.6,2526.3,0.39577]
[1725021180090,0.0059346,2526.6,2526.1,0.4017346]
[1725021180284,0.0059346,2526.6,2526.1,0.0059346]
[1725021180285,1.38527,2526.2,2526.1,0.0059346]
[1725021180580,0.39579,2526.2,2526.1,0.0059346]
[1725021180777,15.78089043,2526.2,2526.1,0.0059346]
[1725021180973,14.39562043,2526.2,2524.8,0.79178391]
[1725021181173,14.39562043,2526.2,2524.3,3.2078]
[1725021181174,3.2078,2525.2,2524.3,3.2078]
[1725021181386,0.39604,2524.7,2524.4,0.49513831]
[1725021181689,0.39604,2524.7,2523.6,3.2078]
[1725021181690,0.39611,2524.2,2523.7,1.18846939]
[1725021181892,0.0059346,2524.2,2523.7,0.79229939]
[1725021182186,3.2078,2524.0,2522.8,3.2078]
[1725021182379,4.19928559,2524.1,2522.8,3.2078]
[1725021182689,3.2078,2524.0,2523.0,0.39628]
[1725021182873,3.2078,2523.6,2523.1,0.79258022]
[1725021183071,3.2078,2523.6,2523.3,0.39624]
[1725021183275,3.2078,2523.6,2522.9,0.79267607]
[1725021183581,4.51852008,2523.5,2522.8,3.2078]
[1725021183787,4.51852008,2523.5,2522.9,0.49552488]
[1725021183987,4.51852008,2523.5,2522.8,3.2078]
[1725021183988,3.2078,2523.2,2522.8,3.2078]
[1725021184190,3.2078,2523.2,2522.9,0.49554448]
[1725021184378,4.17961315,2523.1,2522.9,0.39629]
[1725021184688,0.0059346,2523.3,2523.0,0.49548432]
[1725021184989,0.0059346,2523.3,2523.2,0.39626]
[1725021185184,3.2078,2524.4,2523.2,3.70328778]
[1725021185377,6.91987,2525.2,2523.3,1.28835664]
[1725021185378,3.60384,2524.7,2523.3,1.28835664]
[1725021185580,4.12968836,2524.6,2524.1,3.2078]
[1725021185880,6.319,2525.7,2524.1,3.2078]
[1725021185881,3.2078,2524.8,2524.5,0.39604]
[1725021186184,0.00594648,2524.9,2524.6,0.49523404]
[1725021186384,0.00594648,2524.9,2524.4,0.00594648]
[1725021186685,0.00594648,2524.9,2524.5,0.49517364]
[1725021186990,4.51995885,2524.8,2524.4,0.00594648]
[1725021187184,0.39605,2524.6,2524.4,0.00594648]
[1725021187483,8.41999693,2524.5,2523.7,0.4952642]
[1725021187685,7.42983693,2524.5,2523.4,0.79248627]
[1725021187884,3.2078,2524.2,2523.2,0.79261187]
[1725021188092,3.2078,2524.2,2523.3,0.4954098]
[1725021188381,3.2078,2524.2,2522.8,0.3968]
[1725021188382,0.39614,2524.0,2522.8,0.3968]
[1725021188588,0.39619,2523.7,2522.6,3.6046]
[1725021188772,0.00594648,2523.4,2522.6,3.6046]
[1725021188978,0.00594648,2523.4,2522.6,3.2078]
[1725021189275,0.00594648,2523.4,2521.7,0.393]
[1725021189276,0.39627,2523.1,2523.0,0.79270637]
[1725021189474,0.39627,2523.1,2522.0,3.6046]
[1725021189475,52.49842153,2523.3,2522.1,0.49558148]
[1725021189685,52.49842153,2523.3,2522.0,3.2078]
[1725021189686,5.46944794,2523.1,2522.2,0.49558148]
[1725021189887,0.39638,2522.4,2521.8,0.79270637]
[1725021190078,3.2078,2522.3,2522.0,0.39645]
[1725021190281,3.60421,2522.3,2521.5,0.49575046]
[1725021190582,3.60421,2522.3,2521.6,3.2078]
[1725021190583,0.00594648,2522.2,2521.6,3.2078]
[1725021190792,0.00594648,2522.2,2521.3,0.39654]
[1725021190984,0.39647,2521.9,2521.3,0.39654]
[1725021191188,4.41538645,2522.2,2521.1,3.70355478]
[1725021191189,3.2078,2522.0,2521.1,3.70355478]
[1725021191488,4.40943997,2521.8,2521.1,3.2078]
[1725021191689,3.2078,2521.4,2520.5,3.2078]
[1725021191878,3.2078,2521.7,2520.5,3.2078]
[1725021192079,3.2078,2521.7,2521.5,0.39652]
[1725021192390,0.00594648,2522.2,2522.1,0.39643]
[1725021192778,6.48e-06,2522.2,2522.1,4.36123]
[1725021193282,6.48e-06,2522.2,2522.1,0.39643]
[1725021193496,6.48e-06,2522.2,2522.1,10.36123]
[1725021194490,6.48e-06,2522.2,2522.1,4.36123]
[1725021194778,6.48e-06,2522.2,2522.0,3.60424]
[1725021194981,6.48e-06,2522.2,2521.9,0.00594648]
[1725021195390,3.9648,2522.1,2521.9,0.00594648]
[1725021195591,4.3643534,2522.1,2521.9,0.00594648]
[1725021195785,6.48e-06,2522.2,2521.9,0.00594648]
[1725021195988,6.48e-06,2522.2,2521.9,3.21374648]
[1725021196288,6.48e-06,2522.2,2521.9,0.00594648]
[1725021197082,4.14888412,2522.1,2521.9,0.00594648]
[1725021197297,8.11368412,2522.1,2521.9,0.00594648]
[1725021197498,3.9648,2522.0,2521.9,0.00594648]
[1725021197994,4.43827132,2522.0,2521.9,0.40240648]
[1725021198193,6.48e-06,2522.2,2522.1,0.39643]
[1725021198490,6.48e-06,2522.2,2522.1,5.58639]
[1725021198692,3.2078,2524.4,2522.1,4.5182]
[1725021198893,3.2078,2524.4,2523.3,0.99061]
[1725021199190,0.39614,2524.0,2523.3,0.39623]
[1725021199397,7.75590453,2524.1,2522.9,3.2078]
[1725021199398,3.2078,2524.1,2522.9,3.2078]
[1725021199687,0.00594648,2523.8,2523.2,0.00594648]
[1725021199879,0.00594648,2523.8,2523.6,0.39619]
[1725021200084,0.00594648,2523.8,2523.3,3.2078]
[1725021200085,0.00594648,2523.8,2523.7,3.60398]
[1725021200290,0.00594648,2523.8,2523.7,8.55684]
[1725021200291,6.48e-06,2523.8,2523.7,8.55684]
[1725021200490,6.48e-06,2523.8,2523.7,15.5473]
[1725021200792,6.48e-06,2523.8,2523.7,13.56638]
[1725021201288,6.48e-06,2523.8,2523.7,3.60398]
[1725021201491,6.48e-06,2523.8,2523.4,3.2078]
[1725021202087,6.48e-06,2523.8,2523.7,0.39618]
[1725021202285,6.48e-06,2523.8,2523.7,3.60398]
[1725021202488,6.48e-06,2523.8,2523.7,14.55684]
[1725021202688,6.48e-06,2523.8,2523.7,15.5473]
[1725021203100,6.48e-06,2523.8,2523.7,15.9441]
[1725021203394,3.963,2525.5,2523.8,5.93]
[1725021203591,3.2078,2526.3,2525.0,3.2078]
[1725021203795,3.2078,2526.3,2525.8,0.39584]
[1725021203987,8.06782471,2526.3,2525.3,3.2078]
[1725021204299,8.06782471,2526.3,2526.0,0.39581]
[1725021204300,0.00594648,2526.1,2526.0,0.39581]
[1725021204790,0.00594648,2526.1,2525.8,3.60365]
[1725021204984,0.00594648,2526.1,2525.6,3.2078]
[1725021205189,4.20503536,2526.0,2525.5,0.40183648]
[1725021205497,3.2078,2525.9,2525.5,0.00594648]
[1725021205685,0.39588,2525.6,2525.5,0.00594648]
[1725021205986,0.39588,2525.6,2524.8,3.2078]
[1725021205987,0.39597,2525.1,2524.8,3.2078]
[1725021206192,0.39597,2525.1,2524.6,0.39604]
[1725021206193,0.39599,2525.0,2524.2,3.2078]
[1725021206391,0.396,2524.9,2524.4,0.39606]
[1725021206583,3.2078,2524.9,2524.2,3.2078]
[1725021206892,3.2078,2524.9,2524.3,0.00594648]
[1725021206893,4.19770794,2524.8,2524.3,0.00594648]
[1725021207096,0.00594648,2524.8,2524.3,0.00594648]
[1725021207392,0.00594648,2524.8,2524.7,0.39602]
[1725021207693,3.60363,2526.0,2525.5,0.39589]
[1725021207996,4.95127,2526.8,2524.8,0.99001]
[1725021207997,3.2078,2526.3,2525.7,0.39586]
[1725021208194,0.39579,2526.2,2525.7,0.39586]
[1725021208499,4.05478818,2526.2,2525.6,3.2078]
[1725021208693,4.06073466,2526.2,2525.6,3.21374648]
[1725021208990,0.39583,2526.0,2525.6,0.40182648]
[1725021209186,0.39584,2525.9,2525.6,0.00594648]
[1725021209589,0.00594648,2526.2,2525.6,0.00594648]
[1725021209792,0.39587,2525.7,2525.6,0.00594648]
[1725021210091,1.38554,2525.7,2525.6,0.00594648]
[1725021210295,1.38554,2525.7,2524.7,3.2078]
[1725021210296,0.39598,2525.0,2524.7,3.2078]
[1725021210494,3.2078,2525.1,2524.3,3.2078]
[1725021210794,0.39604,2524.6,2524.3,3.2078]
[1725021210993,1.20428104,2525.0,2524.0,3.2078]
[1725021210994,4.19782,2524.8,2524.0,3.2078]
[1725021211293,4.75629783,2524.5,2524.1,0.00594648]
[1725021211503,0.00594648,2524.7,2524.1,0.00594648]
[1725021211691,0.39606,2524.5,2524.1,0.40205648]
[1725021211886,4.2099272,2524.6,2524.5,0.39605]
[1725021212092,0.00594648,2524.7,2524.6,0.39604]
[1725021212292,3.2078,2525.5,2525.4,0.39591]
[1725021212596,0.39586,2525.8,2525.4,0.39591]
[1725021212792,0.39586,2525.8,2525.4,0.3959]
[1725021212997,0.39586,2525.8,2525.1,3.2078]
[1725021212998,0.39586,2525.8,2525.5,0.39589]
[1725021213194,4.28866253,2526.0,2525.4,0.00594648]
[1725021213390,0.3959,2525.5,2525.4,0.00594648]
[1725021213596,4.28866253,2525.7,2525.5,0.39589]
[1725021213799,0.00594648,2525.9,2525.7,0.39587]
[1725021213992,0.00594648,2525.9,2525.4,0.00594648]
[1725021214199,0.00594648,2525.9,2525.5,0.39589]
[1725021214598,0.00594648,2525.9,2525.4,0.00594648]
[1725021214904,0.00594648,2525.9,2525.8,0.39585]
[1725021215200,3.2078,2526.9,2525.8,3.9592]
[1725021215403,3.60349,2526.9,2526.2,3.2078]
[1725021215598,3.60349,2526.9,2526.5,0.39573]
[1725021215599,7.46545991,2526.9,2526.5,0.39573]
[1725021215802,7.86113991,2526.9,2526.5,0.39573]
[1725021216099,3.2078,2526.9,2526.8,0.39569]
[1725021216305,3.2078,2528.5,2527.9,0.39551]
[1725021216596,44.99639,2528.5,2527.5,3.2078]
[1725021216790,44.99639,2528.5,2527.7,3.2078]
[1725021216791,0.3955,2528.1,2527.7,3.2078]
[1725021216991,44.99639,2528.5,2527.2,3.2078]
[1725021216992,3.2078,2528.3,2527.2,3.2078]
[1725021217200,0.98881,2527.9,2526.9,3.2078]
[1725021217402,0.98881,2527.9,2527.5,0.00593401]
[1725021217703,7.72672575,2528.0,2527.5,0.00593401]
[1725021217704,0.16800666,2527.8,2527.5,0.00593401]
[1725021217997,0.39555,2527.8,2527.5,0.00593401]
[1725021218200,4.36481878,2527.9,2527.5,0.00593401]
[1725021218408,0.00593401,2528.0,2527.5,0.00593401]
[1725021218409,0.40144401,2528.0,2527.5,0.00593401]
[1725021218597,0.40144401,2528.0,2527.9,0.39552]
[1725021218598,0.00593401,2528.0,2527.9,0.39552]
[1725021219112,0.39537,2528.9,2527.9,9.956]
[1725021219400,0.39537,2528.9,2528.4,0.39544]
[1725021219595,4.40903356,2528.9,2528.5,0.39542]
[1725021219800,0.9885,2528.7,2528.1,3.2078]
[1725021219996,3.2078,2528.9,2528.1,3.2078]
[1725021220204,0.39547,2528.2,2528.1,3.2078]
[1725021220395,4.40903356,2528.7,2527.9,0.39551]
[1725021220711,0.99440401,2528.8,2527.9,0.39552]
[1725021220712,0.39546,2528.3,2527.9,0.39552]
[1725021220903,4.16137369,2528.5,2527.5,3.21373401]
[1725021220904,4.16137369,2528.5,2528.3,0.39545]
[1725021221097,0.39542,2528.6,2528.1,0.39548]
[1725021221299,0.00593401,2528.8,2528.5,0.39543]
[1725021221602,0.00593401,2528.8,2528.2,3.2078]
[1725021221603,4.34236569,2528.7,2528.6,0.39541]
[1725021221792,0.00593401,2528.8,2528.2,3.2078]
[1725021221996,0.00593401,2528.8,2528.6,0.3954]
[1725021222203,0.00593401,2528.8,2528.7,0.3954]
[1725021222409,0.00593401,2528.8,2528.2,3.2078]
[1725021223316,4.17151789,2528.7,2527.6,3.2078]
[1725021223498,3.2078,2528.6,2527.6,3.2078]
[1725021223701,0.39552,2527.9,2527.6,3.2078]
[1725021223909,0.98873,2528.1,2527.5,0.00593401]
[1725021224101,3.2078,2528.3,2527.5,0.00593401]
[1725021224298,4.1792081,2528.0,2527.5,0.00593401]
[1725021224496,0.39554,2527.8,2527.5,0.00593401]
[1725021224702,0.39553,2527.9,2527.5,0.00593401]
[1725021224897,0.39553,2527.9,2527.6,3.2078]
[1725021225101,0.39551,2528.0,2527.6,3.2078]
[1725021225414,5.1235853,2528.2,2527.5,0.00593401]
[1725021225610,0.98873,2528.1,2527.5,0.00593401]
[1725021225914,0.39551,2528.0,2527.6,0.39556]
[1725021226109,3.2078,2528.3,2527.5,0.00593401]
[1725021226414,3.2078,2528.0,2527.5,0.00593401]
[1725021226708,1.3845,2527.6,2527.5,0.00593401]
[1725021227114,1.3845,2527.6,2527.5,4.01e-06]
[1725021227115,12.33023,2527.6,2527.5,4.01e-06]
[1725021227413,0.39566,2527.0,2526.7,0.3957]
[1725021227709,3.2078,2527.4,2526.5,0.98935]
[1725021227912,0.39568,2526.9,2526.6,0.39572]
[1725021228113,4.3747064,2527.3,2526.7,3.2078]
[1725021228414,0.00593401,2527.0,2526.7,3.2078]
[1725021228618,0.00593401,2527.0,2526.5,0.40166401]
[1725021228817,0.00593401,2527.0,2526.7,3.2078]
[1725021229110,3.2078,2526.9,2526.5,0.00593401]
[1725021229412,0.39572,2526.6,2526.5,0.00593401]
[1725021229608,0.3957,2526.8,2526.5,0.40165401]
[1725021229912,0.00593401,2527.0,2526.8,0.39569]
[1725021230108,0.00593401,2527.0,2526.9,0.39568]
[1725021230312,3.2078,2527.7,2527.6,0.39557]
[1725021230507,3.60336,2527.7,2527.5,0.39558]
[1725021230712,3.60336,2527.7,2527.4,0.39559]
[1725021230913,3.2078,2527.7,2527.3,3.2078]
[1725021231106,3.2078,2527.7,2526.8,3.2078]
[1725021231300,0.00593401,2527.5,2526.8,3.2078]
[1725021232006,0.39561,2527.4,2527.1,0.39564]
[1725021232203,0.40152401,2527.5,2527.2,0.39562]
[1725021232410,0.00593401,2527.5,2527.4,0.3956]
[1725021232612,0.00593401,2527.5,2527.4,3.6034]
[1725021232815,0.00593401,2527.5,2527.4,10.3524]
[1725021233012,0.00593401,2527.5,2527.4,14.54921]
[1725021233509,3.2078,2528.5,2527.5,0.98894]
[1725021233707,3.2078,2528.8,2527.7,3.2078]
[1725021234015,5.13795735,2529.0,2528.4,0.39543]
[1725021234203,4.14957735,2529.0,2528.5,0.39542]
[1725021234403,0.00391999,2528.8,2528.7,0.3954]
[1725021235009,0.00391999,2528.8,2528.7,4.3498]
[1725021236214,0.00391999,2528.8,2528.4,3.2078]
[1725021236413,0.00391999,2528.8,2528.7,0.3954]
[1725021236911,4.19602,2529.5,2529.0,0.39534]
[1725021236912,0.39532,2529.3,2529.0,0.39534]
[1725021237112,3.2078,2529.5,2529.1,0.39532]
[1725021237113,0.39529,2529.4,2529.1,0.39532]
[1725021237315,3.2078,2529.5,2528.9,0.98842]
[1725021237518,0.98807,2529.8,2528.9,0.98842]
[1725021237714,3.2078,2529.9,2529.0,3.2078]
[1725021238016,0.39529,2529.4,2528.7,0.98847]
[1725021238314,3.2078,2529.9,2529.3,0.39529]
[1725021238613,3.2078,2529.9,2528.9,3.2078]
[1725021238614,0.98813,2529.7,2528.9,3.2078]
[1725021238923,3.2078,2529.3,2528.5,3.2078]
[1725021239216,0.9883,2529.2,2528.5,3.2078]
[1725021239422,0.39535,2529.0,2528.8,3.60317]
[1725021239610,0.39534,2529.1,2528.9,0.39536]
[1725021239809,8.15049,2529.3,2528.5,3.2078]
[1725021240009,4.18708589,2529.2,2528.5,3.2078]
[1725021240320,1.346,2530.5,2528.6,0.3954]
[1725021240321,0.39539,2528.8,2528.6,0.3954]
[1725021240615,0.39539,2528.8,2528.5,3.2078]
[1725021240616,0.98854,2528.6,2528.5,3.2078]
[1725021240812,0.98854,2528.6,2528.2,0.00593401]
[1725021240813,0.98842,2528.9,2528.3,3.2078]
[1725021241014,3.2078,2529.2,2528.3,3.2078]
[1725021241221,0.39536,2529.0,2528.8,0.39537]
[1725021241404,0.39536,2529.0,2528.2,0.00593401]
[1725021241405,3.2078,2529.0,2528.2,0.00593401]
[1725021241611,4.23119271,2529.1,2528.3,3.2078]
[1725021241810,3.2078,2529.3,2528.5,3.2078]
[1725021242013,0.39526,2529.6,2529.3,0.3953]
[1725021242213,0.39523,2529.8,2529.5,0.39526]
[1725021242414,0.39523,2529.8,2529.1,3.2078]
[1725021242415,3.2078,2530.0,2529.4,0.00593401]
[1725021242716,0.39523,2529.8,2529.5,0.39526]
[1725021242917,4.2010369,2529.9,2529.4,0.00593401]
[1725021243217,0.39526,2529.6,2529.4,0.00593401]
[1725021243414,0.39527,2529.5,2529.4,0.00593401]
[1725021243617,0.39536,2528.9,2528.8,3.2078]
[1725021243915,4.75,2529.0,2527.7,11.42254]
[1725021244129,0.39558,2527.6,2527.4,3.2078]
[1725021244312,3.2078,2528.2,2527.0,3.2078]
[1725021244618,0.39573,2526.6,2526.3,0.79081038]
[1725021244826,0.39576,2526.4,2526.3,0.79081038]
[1725021245029,0.39577,2526.3,2526.2,0.00593401]
[1725021245513,3.9584,2526.3,2526.2,0.00593401]
[1725021245818,3.2078,2526.4,2526.2,0.00593401]
[1725021246025,0.39577,2526.3,2526.2,0.00593401]
[1725021246214,0.39585,2525.9,2525.6,3.2078]